bitfinex-derivatives/quotes_SOLF0:USTF0_20250803
["timestamp","ask_amount","ask_price","bid_price","bid_amount"]
[1754245637969,124.26257955,161.99,161.89,3.23]
[1754245638166,3.23,161.98,161.89,3.23]
[1754245638367,114.3,161.99,161.9,3.23]
[1754245638368,9.405,161.95,161.9,3.23]
[1754245638561,3.23,161.94,161.9,3.23]
[1754245638963,3.23,161.96,161.9,3.23]
[1754245639566,117.53,161.99,161.91,3.23]
[1754245639767,3.23,161.98,161.91,3.23]
[1754245640562,3.23,161.95,161.92,3.23]
[1754245640766,6.1744,161.96,161.92,3.23]
[1754245641072,3.23,161.95,161.92,3.23]
[1754245641569,3.23,162.0,161.93,3.23]
[1754245642170,3.23,161.97,161.93,3.23]
[1754245642368,9.4039,161.98,161.93,3.23]
[1754245642667,3.23,161.97,161.94,3.23]
[1754245644164,3.23,161.99,161.94,3.23]
[1754245644758,3.23,161.98,161.94,3.23]
[1754245645368,3.23,161.97,161.94,3.23]
[1754245645570,3.23,161.96,161.95,3.23]
[1754245645972,128.43984571,162.01,161.85,121.48591255]
[1754245645973,6.1741,161.97,161.91,3.23]
[1754245646164,3.23,161.95,161.91,3.23]
[1754245646365,138.40242526,162.01,161.91,3.23]
[1754245646566,3.23,161.97,161.93,3.23]
[1754245647160,3.23,161.97,161.93,9.4055]
[1754245647359,3.23,161.97,161.94,3.23]
[1754245647970,3.23,161.96,161.95,3.23]
[1754245648467,3.23,162.0,161.91,3.23]
[1754245648670,3.23,161.99,161.91,3.23]
[1754245648871,6.1744,161.96,161.91,3.23]
[1754245649176,3.23,161.99,161.91,3.23]
[1754245649468,3.23,161.99,161.92,3.23]
[1754245650166,6.1737,161.98,161.92,9.4056]
[1754245650366,3.23,161.97,161.92,6.1756]
[1754245650579,3.23,161.97,161.94,3.23]
[1754245650772,6.1746,161.96,161.9,6.1766]
[1754245651075,3.23,161.95,161.9,3.23]
[1754245651269,9.4047,161.95,161.9,9.4065]
[1754245651470,3.23,162.0,161.9,3.23]
[1754245651986,3.23,161.99,161.94,6.1747]
[1754245652176,3.23,161.99,161.93,3.23]
[1754245652478,3.23,161.98,161.95,6.1747]
[1754245652675,3.23,161.98,161.97,3.23]
[1754245654282,6.1735,161.99,161.93,3.23]
[1754245654465,18.53468029,162.04,161.93,3.23]
[1754245655281,18.53468029,162.04,161.96,3.23]
[1754245655774,18.53468029,162.04,161.94,3.23]
[1754245655977,114.6,162.05,161.96,3.23]
[1754245656180,114.6,162.05,161.98,6.1733]
[1754245656181,6.1719,162.03,161.98,6.1733]
[1754245656371,3.23,162.02,161.99,3.23]
[1754245656681,3.23,162.02,161.99,6.22112641]
[1754245656874,3.23,162.02,162.01,3.23]
[1754245657174,9.4014,162.04,162.01,3.23]
[1754245657375,3.23,162.08,162.01,6.1724]
[1754245657584,6.1709,162.06,162.02,6.22112641]
[1754245657781,3.23,162.05,162.03,3.23]
[1754245657976,663.13462732,162.1,162.03,3.23]
[1754245657977,3.23,162.04,162.03,3.23]
[1754245658878,3.23,162.04,162.01,3.23]
[1754245659077,656.24257507,162.1,162.0,3.23]
[1754245659078,3.23,162.09,162.0,3.23]
[1754245660083,6.1712,162.05,162.0,6.1727]
[1754245660278,3.23,162.04,162.01,3.23]
[1754245660682,9.4016,162.04,162.01,3.23]
[1754245660871,3.23,162.03,162.01,3.23]
[1754245661076,3.23,162.03,162.02,3.23]
[1754245661882,3.23,162.04,162.02,3.23]
[1754245662078,3.23,162.04,162.03,3.23]
[1754245662278,3.23,162.09,162.03,3.23]
[1754245662583,6.1713,162.05,162.0,6.1728]
[1754245662784,9.4013,162.05,162.04,3.23]
[1754245662985,3.23,162.05,162.0,3.23]
[1754245663380,3.23,162.03,162.0,3.23]
[1754245664185,3.23,162.03,161.99,9.95047467]
[1754245664484,656.24257507,162.1,161.99,9.95047467]
[1754245664689,3.27,162.09,162.0,3.3]
[1754245665382,3.27,162.09,162.01,3.3]
[1754245666091,3.27,162.09,162.02,3.3]
[1754245666384,3.27,162.09,162.03,3.3]
[1754245666977,6.1705,162.07,161.98,6.1734]
[1754245667190,3.27,162.09,162.03,3.3]
[1754245667683,6.1704,162.07,162.03,3.3]
[1754245667889,3.27,162.06,162.03,3.3]
[1754245668485,3.27,162.06,162.03,6.1716]
[1754245668685,3.27,162.06,162.04,3.3]
[1754245670692,6.1698,162.08,162.05,9.95047467]
[1754245670693,3.27,162.08,162.05,9.95047467]
[1754245670890,3.27,162.08,162.07,3.3]
[1754245671191,127.00257507,162.1,162.07,3.3]
[1754245671392,3.27,162.09,162.08,3.3]
[1754245672193,3.27,162.14,162.08,3.3]
[1754245672896,6.1694,162.09,162.05,9.95047467]
[1754245673088,3.27,162.07,162.06,3.3]
[1754245673388,6.1695,162.09,162.06,3.3]
[1754245673595,13.22047467,162.15,162.06,3.3]
[1754245673790,3.27,162.14,162.06,3.3]
[1754245674189,3.27,162.07,162.06,3.3]
[1754245674394,9.44,162.08,162.05,3.3]
[1754245674794,3.27,162.07,162.05,3.3]
[1754245675896,3.27,162.14,162.05,3.3]
[1754245676300,6.1693,162.1,162.06,3.3]
[1754245676495,9.4393,162.1,162.06,3.3]
[1754245676700,117.31,162.17,162.08,3.3]
[1754245677001,3.27,162.16,162.08,3.3]
[1754245677897,6.1685,162.12,162.08,3.3]
[1754245678096,3.27,162.11,162.08,3.3]
[1754245678698,3.27,162.11,162.09,3.3]
[1754245678898,3.27,162.11,162.1,3.3]
[1754245679391,3.27,162.11,162.04,3.3]
[1754245679701,3.27,162.1,162.04,3.3]
[1754245680000,3.27,162.07,162.04,3.3]
[1754245680200,3.27,162.1,162.04,3.3]
[1754245680893,6.1698,162.08,162.04,3.3]
[1754245681102,3.27,162.06,162.04,3.3]
[1754245681398,3.27,162.11,162.08,3.3]
[1754245681595,3.27,162.11,162.08,6.21374552]
[1754245681792,3.27,162.11,162.01,3.3]
[1754245681997,3.27,162.08,162.05,3.3]
[1754245682295,3.27,162.14,162.07,3.3]
[1754245682596,120.25374552,162.17,162.09,3.3]
[1754245682597,3.27,162.12,162.09,3.3]
[1754245682799,3.27,162.12,162.07,3.3]
[1754245682999,6.1693,162.1,162.07,3.3]
[1754245683302,3.27,162.08,162.07,3.3]
[1754245683598,3.27,162.08,162.04,6.21374552]
[1754245683599,3.27,162.08,162.05,3.3]
[1754245683794,3.27,162.08,162.03,3.3]
[1754245683999,3.27,162.08,162.02,6.21374552]
[1754245684192,3.27,162.04,162.02,9.51374552]
[1754245684400,3.27,162.03,162.02,3.3]
[1754245686591,9.95299244,162.1,162.01,6.1723]
[1754245686900,3.27,162.04,162.03,3.3]
[1754245688404,9.4413,162.04,162.03,3.3]
[1754245689004,3.27,162.04,162.03,3.3]
[1754245689202,3.27,162.04,161.98,9.95299244]
[1754245689508,3.27,162.04,161.99,3.3]
[1754245689698,3.27,162.04,161.95,9.95299244]
[1754245690004,3.27,162.04,161.96,3.3]
[1754245690195,9.95299244,162.04,161.96,3.3]
[1754245690399,3.27,162.03,161.96,3.3]
[1754245691106,6.1733,161.99,161.96,3.3]
[1754245691298,3.27,161.98,161.96,3.3]
[1754245691703,3.27,161.98,161.97,3.3]
[1754245693104,6.1736,161.98,161.95,3.3]
[1754245693404,9.95299244,162.04,161.96,3.3]
[1754245693405,3.27,161.97,161.96,3.3]
[1754245693609,3.46,161.96,161.94,3.3]
[1754245693908,3.46,161.96,161.95,3.5]
[1754245694098,9.6343,161.96,161.95,3.5]
[1754245694497,9.6343,161.96,161.92,9.95299244]
[1754245694498,6.1743,161.96,161.92,9.95299244]
[1754245694699,3.46,161.95,161.94,3.5]
[1754245694902,3.46,161.95,161.93,3.5]
[1754245695102,3.46,161.94,161.93,3.5]
[1754245695296,6.1748,161.95,161.89,9.95299244]
[1754245695500,3.46,161.93,161.9,3.5]
[1754245696303,3.46,161.92,161.9,3.5]
[1754245696610,3.46,161.97,161.9,3.5]
[1754245697207,6.1754,161.94,161.9,3.5]
[1754245697401,6.1754,161.94,161.89,6.1767]
[1754245697402,3.46,161.92,161.91,3.5]
[1754245701014,3.46,161.94,161.91,9.6761]
[1754245701214,3.46,161.94,161.92,3.5]
[1754245701414,6.175,161.95,161.93,3.5]
[1754245702012,3.46,161.94,161.93,3.5]
[1754245703109,9.95299244,162.01,161.93,3.5]
[1754245703411,3.46,162.0,161.93,3.5]
[1754245704610,3.46,162.0,161.96,6.22331497]
[1754245704812,6.22331497,162.07,161.97,3.5]
[1754245705313,3.46,162.01,161.99,3.5]
[1754245705618,3.46,162.01,162.0,3.5]
[1754245706308,9.6324,162.01,162.0,3.5]
[1754245706505,3.46,162.01,162.0,3.5]
[1754245708408,3.46,162.04,162.01,3.5]
[1754245709117,3.46,162.03,162.01,3.5]
[1754245709518,3.46,162.05,162.01,3.5]
[1754245709711,9.6312,162.05,162.01,3.5]
[1754245710014,9.6312,162.05,161.92,114.08]
[1754245710015,3.46,162.05,162.02,9.72331497]
[1754245710210,3.46,162.1,162.03,3.5]
[1754245711112,3.46,162.1,162.04,6.22331497]
[1754245711316,6.1701,162.08,162.06,3.5]
[1754245711522,3.46,162.07,162.06,3.5]
[1754245712515,9.6302,162.07,162.06,3.5]
[1754245713723,3.46,162.07,162.0,3.5]
[1754245714320,3.46,162.05,162.0,3.5]
[1754245714521,6.1723,162.02,162.0,3.5]
[1754245714717,3.46,162.01,162.0,3.5]
[1754245715116,3.46,162.0,161.99,3.5]
[1754245715617,9.6328,162.0,161.99,3.5]
[1754245717722,3.46,161.98,161.97,3.5]
[1754245718120,9.6337,161.98,161.97,3.5]
[1754245718524,9.6337,161.98,161.95,3.5]
[1754245718525,3.46,161.98,161.95,3.5]
[1754245719026,3.46,161.98,161.96,3.5]
[1754245719325,3.46,161.97,161.96,3.5]
[1754245720827,3.46,161.96,161.95,3.5]
[1754245721121,3.46,161.96,161.92,6.22331497]
[1754245721319,3.46,161.95,161.94,3.5]
[1754245722524,3.46,161.95,161.92,3.5]
[1754245722725,3.46,161.95,161.9,6.22331497]
[1754245722726,3.46,161.97,161.91,3.5]
[1754245722921,3.46,161.94,161.92,3.5]
[1754245723324,3.46,161.93,161.92,3.5]
[1754245723926,3.46,161.93,161.89,3.36]
[1754245725131,3.28,161.95,161.89,3.36]
[1754245725826,3.28,161.93,161.89,3.36]
[1754245727623,3.28,161.93,161.89,9.5369]
[1754245727825,6.1748,161.95,161.9,3.36]
[1754245728028,3.28,161.96,161.91,3.36]
[1754245728427,3.28,162.0,161.93,3.36]
[1754245729427,6.1729,162.0,161.94,6.1748]
[1754245729731,3.28,161.98,161.95,3.36]
[1754245729936,3.28,161.98,161.95,6.1746]
[1754245730232,3.28,161.98,161.96,3.36]
[1754245730827,3.28,161.98,161.97,3.36]
[1754245735146,3.28,162.02,161.93,6.22331497]
[1754245735347,6.1727,162.01,161.95,6.1745]
[1754245735546,3.28,162.0,161.93,6.22331497]
[1754245735746,3.28,162.0,161.94,3.36]
[1754245735948,3.28,162.0,161.94,6.175]
[1754245736149,3.28,162.0,161.95,9.58331497]
[1754245736344,3.28,162.0,161.95,6.22331497]
[1754245736549,3.28,162.0,161.96,3.36]
[1754245737250,6.173,162.0,161.96,3.36]
[1754245737451,6.173,162.0,161.86,6.88591255]
[1754245737452,3.28,161.99,161.93,6.22331497]
[1754245737642,3.28,161.99,161.94,3.36]
[1754245737948,3.28,161.97,161.93,6.22331497]
[1754245738149,3.28,161.97,161.95,3.36]
[1754245739651,6.174,161.97,161.95,3.36]
[1754245739948,3.28,161.96,161.93,3.36]
[1754245740349,3.28,161.95,161.91,3.36]
[1754245740548,3.28,161.95,161.9,6.22331497]
[1754245740950,3.28,161.94,161.93,3.36]
[1754245744056,6.1747,161.95,161.91,3.36]
[1754245744251,3.28,161.94,161.91,3.36]
[1754245744454,6.1747,161.95,161.91,3.36]
[1754245744647,6.1747,161.95,161.9,12.39981497]
[1754245744648,3.28,161.96,161.89,3.36]
[1754245744854,6.22331497,161.95,161.89,3.36]
[1754245745054,3.28,161.94,161.89,3.36]
[1754245745753,6.22331497,161.93,161.89,3.36]
[1754245745956,6.1763,161.91,161.89,3.36]
[1754245746161,3.28,161.9,161.89,3.36]
[1754245746560,9.4568,161.9,161.86,3.36]
[1754245746756,6.1768,161.9,161.86,3.36]
[1754245747059,3.28,161.88,161.87,3.36]
[1754245747761,6.1762,161.92,161.87,3.36]
[1754245747956,3.28,161.91,161.87,3.36]
[1754245748555,3.28,161.9,161.87,3.36]
[1754245750864,3.28,161.89,161.87,3.36]
[1754245757067,3.28,161.89,161.87,9.5378]
[1754245757267,3.28,161.89,161.88,3.26]
[1754245758365,3.41,161.97,161.88,3.26]
[1754245758566,3.41,161.97,161.9,3.26]
[1754245758970,3.41,161.93,161.9,3.26]
[1754245759160,3.41,161.93,161.88,6.22331497]
[1754245759367,3.41,161.93,161.89,3.26]
[1754245759566,3.41,161.91,161.89,3.26]
[1754245760873,9.5863,161.91,161.89,3.26]
[1754245761069,3.41,161.9,161.89,3.26]
[1754245762772,3.41,161.91,161.89,3.26]
[1754245763571,6.22331497,161.96,161.89,6.177]
[1754245763769,3.41,161.95,161.9,3.26]
[1754245764063,3.41,161.93,161.9,3.26]
[1754245764973,9.5855,161.93,161.9,3.26]
[1754245765274,3.41,161.92,161.9,3.26]
[1754245766271,3.41,161.92,161.91,3.26]
[1754245766573,3.41,161.91,161.89,3.26]
[1754245767071,9.5863,161.91,161.89,3.26]
[1754245767381,3.41,161.9,161.89,3.26]
[1754245767774,3.41,161.91,161.89,3.26]
[1754245767974,3.41,161.9,161.86,6.22331497]
[1754245768173,3.41,161.9,161.87,6.1774]
[1754245768571,3.41,161.9,161.88,3.26]
[1754245769578,3.41,161.89,161.87,6.1776]
[1754245769973,3.41,161.91,161.87,6.1776]
[1754245770173,3.41,161.9,161.88,3.26]
[1754245771479,9.586,161.92,161.89,3.26]
[1754245771682,3.41,161.91,161.89,3.26]
[1754245773378,3.41,161.98,161.9,6.22331497]
[1754245773579,4.67887215,161.97,161.93,3.26]
[1754245773778,3.41,161.95,161.91,3.26]
[1754245774477,3.41,161.93,161.91,3.26]
[1754245774883,6.22331497,161.98,161.89,6.177]
[1754245775083,3.41,161.92,161.9,3.26]
[1754245775386,3.41,161.91,161.9,3.26]
[1754245776584,3.41,161.97,161.89,6.177]
[1754245776786,9.5857,161.93,161.89,6.177]
[1754245776985,6.1757,161.93,161.9,3.26]
[1754245777184,3.41,161.92,161.9,3.26]
[1754245779380,3.41,161.92,161.9,15.65991497]
[1754245779685,3.41,161.93,161.91,3.26]
[1754245779883,3.41,161.93,161.92,3.26]
[1754245780086,6.175,161.95,161.91,3.26]
[1754245780385,3.41,161.93,161.91,3.26]
[1754245780585,3.41,161.93,161.92,3.26]
[1754245781281,3.41,161.93,161.9,12.39981497]
[1754245781483,3.41,161.92,161.91,3.26]
[1754245782786,3.41,161.94,161.91,9.4362]
[1754245782983,3.41,161.93,161.92,3.26]
[1754245788493,8.11637289,161.93,161.92,3.26]
[1754245788790,8.11637289,161.93,161.9,6.1765]
[1754245788985,3.41,161.93,161.91,3.19]
[1754245789191,3.41,161.93,161.88,6.22331497]
[1754245789391,3.41,161.93,161.89,3.19]
[1754245789594,3.41,161.93,161.87,6.22331497]
[1754245789796,3.36,161.91,161.85,123.55331497]
[1754245790105,4.70737949,161.9,161.84,6.22331497]
[1754245790287,14.24532888,161.89,161.86,3.19]
[1754245790486,3.36,161.87,161.86,3.19]
[1754245792197,3.36,161.87,161.84,12.40221497]
[1754245792397,3.36,161.91,161.85,3.19]
[1754245792594,3.36,161.89,161.85,3.19]
[1754245792786,9.5381,161.87,161.85,3.19]
[1754245792990,3.36,161.86,161.81,12.40301497]
[1754245793187,3.36,161.86,161.82,3.19]
[1754245794189,4.70707537,161.85,161.81,15.59301497]
[1754245794390,6.1783,161.86,161.82,3.19]
[1754245794590,3.36,161.84,161.82,3.19]
[1754245795297,3.36,161.84,161.81,12.40301497]
[1754245795496,6.1786,161.85,161.81,6.1797]
[1754245795691,3.36,161.84,161.83,3.19]
[1754245798795,3.36,161.84,161.81,3.19]
[1754245798993,3.36,161.82,161.79,3.19]
[1754245799191,3.36,161.85,161.79,3.19]
[1754245799395,3.36,161.83,161.8,3.19]
[1754245800106,6.1801,161.81,161.76,6.22331497]
[1754245800398,3.36,161.8,161.77,3.19]
[1754245800700,3.36,161.78,161.76,6.22331497]
[1754245800902,3.36,161.83,161.76,6.22331497]
[1754245801195,3.36,161.81,161.76,6.22331497]
[1754245801406,3.36,161.81,161.78,3.19]
[1754245801596,6.1807,161.8,161.76,6.22331497]
[1754245801787,3.36,161.79,161.77,3.19]
[1754245802195,3.36,161.78,161.77,3.19]
[1754245803296,3.36,161.78,161.75,3.19]
[1754245803800,3.36,161.76,161.75,3.19]
[1754245804498,3.36,161.79,161.72,3.19]
[1754245805294,3.36,161.79,161.72,9.41331497]
[1754245805499,9.5415,161.78,161.75,3.19]
[1754245805894,6.1815,161.78,161.75,3.19]
[1754245806095,3.36,161.77,161.75,3.19]
[1754245806696,6.22331497,161.84,161.75,3.19]
[1754245806897,4.67495398,161.83,161.76,6.22331497]
[1754245807099,3.36,161.82,161.77,3.19]
[1754245808197,6.1805,161.8,161.77,3.19]
[1754245808408,3.36,161.8,161.77,3.19]
[1754245808902,3.36,161.8,161.78,3.19]
[1754245809106,3.36,161.83,161.77,3.19]
[1754245810201,3.36,161.8,161.77,3.19]
[1754245810402,3.36,161.85,161.77,3.19]
[1754245810701,6.1803,161.81,161.77,6.1814]
[1754245810896,6.22331497,161.86,161.78,3.19]
[1754245810897,3.36,161.8,161.78,3.19]
[1754245811207,3.36,161.79,161.77,3.19]
[1754245812902,3.36,161.79,161.78,3.19]
[1754245813802,6.89205225,161.91,161.83,6.1792]
[1754245814109,3.32,161.86,161.85,3.36]
[1754245815804,3.32,161.88,161.85,3.36]
[1754245816004,3.32,161.88,161.86,6.22331497]
[1754245816204,3.32,161.88,161.87,3.36]
[1754245816704,6.22331497,161.95,161.86,6.22331497]
[1754245816912,3.32,161.87,161.86,9.58331497]
[1754245817110,3.32,161.94,161.87,3.36]
[1754245817309,3.32,161.94,161.88,9.58331497]
[1754245817508,3.32,161.94,161.89,3.36]
[1754245817708,123.56987373,161.97,161.92,6.22331497]
[1754245817908,3.32,161.95,161.88,3.36]
[1754245818109,3.32,161.95,161.88,9.58331497]
[1754245818312,3.32,161.95,161.88,6.22331497]
[1754245819212,3.32,161.91,161.88,9.58331497]
[1754245819813,6.1764,161.91,161.88,9.58331497]
[1754245820003,3.32,161.89,161.88,9.58331497]
[1754245820517,3.32,161.89,161.86,9.58331497]
[1754245821010,3.32,161.87,161.86,9.58331497]
[1754245821213,123.56987373,161.97,161.85,3.36]
[1754245821214,3.32,161.86,161.85,3.36]
[1754245822522,3.32,161.86,161.84,9.58331497]
[1754245822719,3.32,161.86,161.84,3.36]
[1754245822915,3.32,161.85,161.84,3.36]
[1754245824123,3.32,161.85,161.83,3.36]
[1754245824622,3.32,161.85,161.84,3.36]
[1754245824824,3.32,161.87,161.82,120.02331497]
[1754245825024,3.32,161.92,161.85,3.36]
[1754245825417,6.1773,161.89,161.85,3.36]
[1754245825622,3.32,161.88,161.85,3.36]
[1754245825820,3.32,161.87,161.86,3.36]
[1754245826214,3.32,161.89,161.86,6.22331497]
[1754245826418,3.32,161.89,161.88,3.36]
[1754245826820,3.32,161.9,161.88,3.36]
[1754245827022,3.32,161.89,161.88,3.36]
[1754245827424,3.32,161.91,161.89,3.36]
[1754245827624,3.32,161.91,161.9,3.36]
[1754245828016,3.32,161.96,161.9,3.36]
[1754245828528,6.1754,161.94,161.9,3.36]
[1754245828725,3.32,161.93,161.91,3.36]
[1754245828922,3.32,161.92,161.91,3.36]
[1754245829323,3.32,161.96,161.91,3.36]
[1754245829626,3.32,161.96,161.93,3.36]
[1754245830220,113.92,161.99,161.93,3.36]
[1754245830419,3.32,161.98,161.93,3.36]
[1754245830620,3.32,161.98,161.94,3.36]
[1754245832133,3.32,162.01,161.94,9.58331497]
[1754245832324,3.32,162.01,161.95,3.36]
[1754245832719,3.32,162.0,161.96,6.22331497]
[1754245833020,3.32,161.99,161.97,3.36]
[1754245833829,6.1721,162.02,161.97,3.36]
[1754245834031,3.32,161.98,161.97,3.36]
[1754245834225,3.32,162.02,161.98,3.36]
[1754245834427,3.32,162.02,161.96,6.22331497]
[1754245834825,3.32,161.98,161.94,6.22331497]
[1754245835028,3.32,161.98,161.94,9.58331497]
[1754245835829,3.32,161.98,161.95,3.36]
[1754245836030,3.32,161.97,161.95,3.36]
[1754245836332,3.32,161.96,161.95,3.36]
[1754245840036,3.32,162.03,161.96,3.36]
[1754245840230,3.32,162.03,161.98,6.22331497]
[1754245840434,3.32,162.01,161.99,3.36]
[1754245840640,6.1722,162.02,161.99,3.36]
[1754245840932,3.32,162.0,161.99,3.36]
[1754245841937,3.32,162.0,161.98,6.22331497]
[1754245842134,130.47041586,162.05,161.98,9.58331497]
[1754245842135,3.32,161.99,161.98,9.58331497]
[1754245842332,3.32,162.0,161.99,3.36]
[1754245843941,3.27,162.01,161.99,3.49]
[1754245844140,3.27,162.01,162.0,3.49]
[1754245844943,3.27,162.02,161.98,9.71331497]
[1754245845739,6.1722,162.02,161.98,6.22331497]
[1754245845939,3.27,162.01,161.96,6.22331497]
[1754245846240,6.1731,162.0,161.95,6.1744]
[1754245846442,3.27,161.99,161.95,9.6644]
[1754245846830,9.4436,161.99,161.95,3.49]
[1754245847036,3.27,161.98,161.92,6.22331497]
[1754245847232,3.27,161.98,161.92,9.71331497]
[1754245847435,3.27,161.98,161.92,6.22331497]
[1754245847644,3.27,161.97,161.94,3.49]
[1754245848041,130.47041586,162.05,161.96,6.22331497]
[1754245848233,130.47041586,162.05,161.9,6.22331497]
[1754245848444,3.27,161.98,161.96,6.22331497]
[1754245848742,3.27,162.04,161.96,6.22331497]
[1754245849040,3.27,162.04,161.96,9.71331497]
[1754245849841,6.1727,162.01,161.96,15.88741497]
[1754245850039,3.27,162.0,161.96,15.88741497]
[1754245850441,3.27,161.98,161.96,6.22331497]
[1754245850636,9.49331497,161.98,161.9,3.49]
[1754245850840,3.27,161.97,161.9,3.49]
[1754245851037,6.1746,161.96,161.91,6.176]
[1754245851234,3.27,161.95,161.91,9.666]
[1754245851640,9.4448,161.95,161.91,9.666]
[1754245851836,3.27,161.94,161.89,9.71331497]
[1754245852039,3.27,161.94,161.89,3.49]
[1754245852844,3.27,161.94,161.87,9.71331497]
[1754245853644,6.22331497,162.0,161.9,3.49]
[1754245853645,3.27,161.93,161.9,3.49]
[1754245853839,120.20331497,162.0,161.91,6.22331497]
[1754245854040,3.27,161.94,161.93,9.6655]
[1754245854240,3.27,161.95,161.94,3.49]
[1754245854947,3.27,161.97,161.94,9.6651]
[1754245855246,3.27,161.96,161.95,3.49]
[1754245855541,3.27,161.98,161.95,3.49]
[1754245855744,6.1735,161.99,161.95,9.6647]
[1754245855939,3.27,161.97,161.96,3.49]
[1754245856133,3.27,161.97,161.96,9.6644]
[1754245856336,3.27,161.97,161.96,3.49]
[1754245857045,6.1725,162.01,161.96,3.49]
[1754245857239,3.27,162.0,161.96,3.49]
[1754245857640,6.1722,162.02,161.97,9.71331497]
[1754245857838,3.27,162.0,161.97,6.22331497]
[1754245858137,3.27,162.0,161.99,3.49]
[1754245859747,3.27,162.04,162.0,3.49]
[1754245860147,6.1718,162.03,162.0,3.49]
[1754245860447,3.27,162.02,162.0,3.49]
[1754245860846,3.27,162.01,162.0,3.49]
[1754245861949,6.1721,162.02,161.99,6.22331497]
[1754245862148,3.27,162.01,161.99,6.22331497]
[1754245862748,3.27,162.01,161.98,9.71331497]
[1754245863141,3.27,162.01,161.98,6.22331497]
[1754245863347,3.27,162.0,161.97,6.22331497]
[1754245863548,3.27,161.99,161.98,3.49]
[1754245864752,3.27,161.98,161.97,9.71331497]
[1754245869850,6.1721,162.02,161.97,9.71331497]
[1754245870043,3.27,162.01,161.95,6.22331497]
[1754245870651,3.27,162.01,161.93,6.22331497]
[1754245870952,3.27,162.01,161.91,9.71331497]
[1754245871255,3.27,161.97,161.93,3.49]
[1754245871751,3.27,161.98,161.94,3.49]
[1754245872047,3.27,161.98,161.95,3.49]
[1754245873549,3.27,161.97,161.93,15.88881497]
[1754245876451,3.23,161.96,161.87,414.78]
[1754245876754,3.23,161.96,161.9,3.24]
[1754245876955,6.1751,161.95,161.9,9.4163]
[1754245877145,3.23,161.94,161.9,9.4163]
[1754245877547,3.23,161.94,161.9,6.1763]
[1754245877752,3.23,161.94,161.91,6.1762]
[1754245878057,3.23,161.94,161.9,3.24]
[1754245878957,3.23,161.94,161.9,9.4164]
[1754245879157,6.1744,161.96,161.89,3.24]